bitfinex/quotes_ETHUSD_20251009
["timestamp","ask_amount","ask_price","bid_price","bid_amount"]
[1760023720461,4.23203181,4325.2,4325.1,0.005]
[1760023720661,6.99970599,4325.2,4325.1,0.005]
[1760023720906,8.06264267,4325.2,4325.1,0.005]
[1760023721600,8.88801258,4325.2,4325.1,0.006]
[1760023721759,8.88730483,4325.2,4325.1,0.006]
[1760023721966,8.06264267,4325.2,4325.1,0.006]
[1760023722159,8.88730483,4325.2,4325.1,0.006]
[1760023723371,8.06264267,4325.2,4325.1,0.006]
[1760023723594,8.88755068,4325.2,4325.1,0.006]
[1760023724415,8.06264267,4325.2,4325.1,0.006]
[1760023725110,17.04264267,4325.2,4325.1,0.006]
[1760023726206,17.04264267,4325.2,4324.7,0.001]
[1760023726207,2.94584565,4324.8,4324.7,0.001]
[1760023726412,23.92227095,4324.8,4324.7,0.001]
[1760023726621,23.92227095,4324.8,4323.2,0.1152]
[1760023726622,16.83068805,4324.2,4323.2,0.1152]
[1760023726912,16.83068805,4324.2,4323.1,0.005]
[1760023726913,4.86621996,4324.1,4323.1,0.005]
[1760023727075,2.3131014,4323.2,4323.1,0.005]
[1760023727271,11.92843467,4323.2,4323.1,0.005]
[1760023727504,12.98237135,4323.2,4323.1,0.005]
[1760023727914,4.08926995,4323.2,4323.1,0.005]
[1760023728215,6.42373467,4323.2,4323.1,0.005]
[1760023728373,12.98337135,4323.2,4323.1,0.005]
[1760023728705,10.67026995,4323.2,4323.1,0.005]
[1760023729210,12.98337135,4323.2,4323.1,0.005]
[1760023729383,4.08926995,4323.2,4323.1,0.005]
[1760023729582,10.69163327,4323.2,4323.1,0.005]
[1760023729795,12.98337135,4323.2,4323.1,0.005]
[1760023730303,4.72857454,4323.2,4323.1,0.005]
[1760023730505,11.30957454,4323.2,4323.1,0.005]
[1760023730806,3.24101347,4323.2,4323.1,0.005]
[1760023731105,2.41454041,4323.2,4323.1,0.005]
[1760023732880,3.24101347,4323.2,4323.1,0.005]
[1760023733283,3.9642515,4323.2,4323.1,0.005]
[1760023734197,2.87760373,4323.2,4323.1,0.005]
[1760023734387,2.43590373,4323.2,4323.1,0.005]
[1760023734613,3.26226638,4323.2,4323.1,0.005]
[1760023734912,1.34226638,4323.2,4323.1,0.005]
[1760023735126,0.49454041,4323.2,4323.1,0.005]
[1760023735328,0.49454041,4323.2,4323.1,2.31815491]
[1760023735533,0.49454041,4323.2,4323.1,0.005]
[1760023735891,0.49454041,4323.2,4323.1,2.31815491]
[1760023736125,0.49454041,4323.2,4323.1,0.47731549]
[1760023736345,0.49454041,4323.2,4323.1,2.7904704]
[1760023736628,0.49374041,4323.2,4323.1,2.7904704]
[1760023736997,0.49374041,4323.2,4323.1,3.0656704]
[1760023738226,0.49374041,4323.2,4323.1,0.47731549]
[1760023738820,0.49374041,4323.2,4323.1,7.05731549]
[1760023739021,0.49374041,4323.2,4323.1,6.585]
[1760023739301,0.49374041,4323.2,4323.1,0.005]
[1760023739933,0.51510373,4323.2,4323.1,0.005]
[1760023740233,1.13485277,4323.2,4323.1,0.005]
[1760023740530,0.64174209,4323.2,4323.1,0.006]
[1760023740902,0.62037877,4323.2,4323.1,0.006]
[1760023741434,1.05677877,4323.2,4323.1,0.006]
[1760023741802,2.97677877,4323.2,4323.1,0.006]
[1760023742001,3.82621013,4323.2,4323.1,0.006]
[1760023742232,2.31324625,4323.0,4322.6,0.001]
[1760023742428,0.82725961,4322.7,4322.6,0.001]
[1760023742654,0.84862293,4322.7,4322.6,0.001]
[1760023743058,1.28502293,4322.7,4322.6,0.001]
[1760023743660,1.74113416,4322.7,4322.6,0.001]
[1760023744566,0.84862293,4322.7,4322.6,0.001]
[1760023744754,0.02136332,4322.7,4322.6,0.001]
[1760023745263,1.28502293,4322.7,4322.6,0.001]
[1760023745467,3.59839188,4322.7,4322.6,0.001]
[1760023745649,3.59839188,4322.7,4321.5,2.405]
[1760023745650,3.59839188,4322.7,4320.1,0.005]
[1760023745651,2.43,4322.5,4320.1,0.005]
[1760023745852,2.43,4322.5,4315.1,2.53016646]
[1760023745853,2.5536,4320.1,4317.1,0.1202]
[1760023746063,11.44518605,4320.2,4317.1,0.1202]
[1760023746064,14.39402961,4319.2,4317.1,0.1202]
[1760023746404,2.5536,4319.1,4317.1,0.005]
[1760023746670,0.6336,4317.8,4317.1,0.005]
[1760023746875,0.2205,4317.2,4317.1,0.005]
[1760023747171,0.02136332,4317.3,4317.1,0.005]
[1760023747334,0.61753801,4317.2,4317.1,0.005]
[1760023747534,0.02136332,4317.3,4317.1,0.005]
[1760023747535,0.61753801,4317.3,4317.1,0.005]
[1760023747868,0.02136332,4317.7,4317.1,0.23715279]
[1760023747869,0.61753801,4317.4,4317.1,0.23715279]
[1760023748046,0.4364,4318.5,4317.1,0.23715279]
[1760023748047,0.61753801,4317.6,4317.2,0.2852]
[1760023748245,0.61753801,4317.6,4317.1,0.005]
[1760023748462,0.51466275,4317.5,4317.1,0.005]
[1760023748631,0.49329943,4317.4,4317.1,0.005]
[1760023748835,0.61753801,4317.6,4317.1,0.005]
[1760023748836,0.49329943,4317.3,4317.1,0.005]
[1760023749055,0.49329943,4317.2,4317.1,0.005]
[1760023750673,0.49329943,4317.2,4317.1,2.60656978]
[1760023750882,0.49329943,4317.2,4317.1,3.10118887]
[1760023751610,0.61753801,4317.8,4317.1,3.19081909]
[1760023751904,0.49202297,4317.7,4317.4,2.31620649]
[1760023752106,0.49202297,4317.6,4317.5,2.31615518]
[1760023752272,0.49202297,4317.6,4317.4,2.31619973]
[1760023752479,0.49202297,4317.5,4317.4,1.44063669]
[1760023752679,0.49202297,4317.5,4317.1,1.1948513]
[1760023752995,0.61753801,4317.8,4317.2,8.997]
[1760023752996,0.49202297,4317.4,4317.2,8.997]
[1760023753291,0.49202297,4317.3,4317.2,11.31331613]
[1760023753801,0.49202297,4317.3,4317.1,6.595]
[1760023753979,0.49202297,4317.2,4317.1,0.005]
[1760023754385,0.94978629,4317.2,4317.1,0.005]
[1760023754689,3.56692549,4317.2,4317.1,0.005]
[1760023754887,0.94978629,4317.2,4317.1,0.005]
[1760023755090,3.26610242,4317.2,4317.1,0.005]
[1760023755290,5.81970242,4317.2,4317.1,0.005]
[1760023755619,17.24352515,4317.2,4317.1,0.005]
[1760023755913,2.31642344,4317.0,4316.1,0.005]
[1760023756135,2.31685278,4316.2,4316.1,0.005]
[1760023756337,9.42023907,4316.2,4316.1,0.005]
[1760023756504,12.12041915,4316.2,4316.1,0.005]
[1760023756835,3.67976755,4316.2,4316.1,0.005]
[1760023757003,14.1468091,4316.2,4316.1,0.005]
[1760023757213,1.92,4316.1,4314.4,0.2074]
[1760023757377,0.61314275,4315.3,4315.0,2.3174937]
[1760023757748,0.63450607,4315.5,4314.9,2.31751155]
[1760023758108,0.02136332,4315.5,4314.4,0.2074]
[1760023758304,0.02136332,4315.5,4314.1,0.005]
[1760023758305,0.61261651,4315.2,4314.1,0.005]
[1760023758610,0.61260396,4315.2,4314.3,0.2084]
[1760023758924,0.46620118,4316.2,4315.0,2.31749083]
[1760023758925,0.61260396,4315.4,4315.0,2.31749083]
[1760023759122,0.83888699,4315.7,4315.0,2.31749083]
[1760023759123,0.61260396,4315.5,4315.0,2.31749083]
[1760023759325,0.02136332,4315.4,4314.8,2.31755594]
[1760023759626,0.02136332,4315.4,4315.2,2.31738176]
[1760023759952,1.92,4316.0,4315.2,2.31738176]
[1760023759953,0.61260396,4316.0,4315.4,2.31728229]
[1760023760127,0.02136332,4316.1,4315.5,2.31722859]
[1760023760327,0.61260396,4316.2,4315.3,2.6932]
[1760023760526,0.63396728,4316.3,4315.9,2.31696312]
[1760023760855,0.63396728,4316.5,4316.1,2.31685999]
[1760023761057,0.61260396,4316.6,4316.1,2.31685999]
[1760023761263,0.02136332,4316.5,4316.1,2.31685999]
[1760023761460,0.02136332,4316.5,4315.4,0.9089192]
[1760023761674,0.02136332,4316.5,4315.5,0.40661112]
[1760023761877,0.02136332,4316.5,4315.5,9.006]
[1760023762576,0.02136332,4316.5,4315.5,11.32320896]
[1760023762870,0.02136332,4316.5,4315.7,2.31710061]
[1760023763164,0.02136332,4316.5,4315.5,9.006]
[1760023763334,0.02136332,4316.5,4315.6,2.31713344]
[1760023763667,0.02136332,4316.5,4315.9,2.31701065]
[1760023763970,0.02136332,4316.5,4315.7,2.3170677]
[1760023764160,0.02136332,4316.5,4315.5,10.15779057]
[1760023764161,0.02136332,4316.5,4316.1,2.31688139]
[1760023764360,0.63396728,4316.5,4315.5,10.15779057]
[1760023764532,0.02136332,4316.5,4315.6,1.56122358]
[1760023764738,0.61260396,4316.7,4315.6,1.56122358]
[1760023764976,0.61260396,4316.7,4316.1,2.31685724]
[1760023765466,0.02136332,4316.8,4315.9,2.31701236]
[1760023765467,0.61260396,4316.6,4315.9,2.31701236]
[1760023765648,0.61260396,4316.6,4316.3,2.31678813]
[1760023765963,0.61260396,4316.6,4316.2,2.31683692]
[1760023766176,0.61260396,4316.6,4316.3,2.31679259]
[1760023766464,0.61260396,4316.5,4316.3,2.31679259]
[1760023766667,0.61260396,4316.5,4316.4,2.43194543]
[1760023767033,0.61260396,4316.7,4316.5,2.31669176]
[1760023767233,0.61260396,4316.6,4316.4,3.02659669]
[1760023767471,0.61260396,4316.6,4316.4,2.91139669]
[1760023767635,0.61260396,4316.7,4316.5,2.43187597]
[1760023767839,0.61260396,4316.7,4316.5,0.1152]
[1760023768037,0.61260396,4316.6,4316.5,0.1152]
[1760023768272,0.81752367,4316.7,4316.5,0.1152]
[1760023768470,0.81752367,4316.8,4316.5,0.1152]
[1760023768875,0.81752367,4316.7,4316.5,2.43188088]
[1760023769052,0.81752367,4316.7,4316.5,3.69194856]
[1760023769053,0.49142088,4316.6,4316.5,3.69194856]
[1760023769788,0.49142088,4316.6,4316.5,4.67243233]
[1760023770442,0.49142088,4316.6,4316.5,12.98615944]
[1760023773251,1.10962576,4316.6,4316.5,12.98615944]
[1760023773581,0.49142088,4316.6,4316.5,12.98615944]
[1760023774280,0.49142088,4316.6,4316.5,12.98718709]
[1760023774783,0.49142088,4316.6,4316.5,3.97818709]
[1760023774982,1.71770639,4316.6,4316.5,2.40902765]
[1760023775182,0.49142088,4316.6,4316.5,6.50350072]
[1760023775381,0.49142088,4316.6,4316.5,11.32369176]
[1760023776084,0.49142088,4316.6,4316.5,11.60889176]
[1760023779058,0.49142088,4316.6,4316.5,11.72409176]
[1760023779254,0.49142088,4316.6,4316.5,13.12818085]
[1760023779459,0.49342088,4316.6,4316.5,13.12818085]
[1760023780062,0.49262088,4316.6,4316.5,13.12818085]
[1760023780710,0.002,4316.6,4316.5,13.12818085]
[1760023781987,0.002,4316.6,4316.5,13.01298085]
[1760023782186,0.002,4316.6,4316.5,5.92598085]
[1760023782419,0.002,4316.6,4316.5,23.16489176]
[1760023782691,0.002,4316.6,4316.5,4.52189176]
[1760023783100,0.002,4316.6,4316.5,23.16389176]
[1760023784526,0.002,4316.6,4316.5,23.79749176]
[1760023785295,0.002,4316.6,4316.5,23.79549176]
[1760023785530,0.002,4316.6,4316.5,26.04726221]
[1760023786103,0.002,4316.6,4316.5,6.77366221]
[1760023786302,0.002,4316.6,4316.5,23.16189176]
[1760023792039,0.002,4316.6,4316.5,4.63709176]
[1760023792266,0.002,4316.6,4316.5,23.27409176]
[1760023792555,0.002,4316.6,4316.5,2.43189176]
[1760023792749,0.002,4316.6,4316.5,8.50969176]
[1760023792924,0.002,4316.6,4316.5,8.79489176]
[1760023794229,0.002,4316.6,4316.5,10.14686085]
[1760023794930,0.002,4316.6,4316.5,12.95786085]
[1760023798145,0.002,4316.6,4316.5,3.95386085]
[1760023798327,0.002,4316.6,4316.5,21.23789176]
[1760023798828,0.002,4316.6,4316.5,9.19689176]
[1760023799062,0.53371855,4318.1,4317.9,2.3159024]
[1760023799238,0.02136332,4318.1,4318.0,6.593]
[1760023799548,0.02136332,4318.1,4317.1,2.31632144]
[1760023799549,2.5536,4318.0,4316.5,0.001]
[1760023799722,12.85906338,4317.3,4316.5,0.001]
[1760023799918,12.85906338,4317.3,4316.6,2.31663809]
[1760023799919,0.52010432,4317.2,4316.6,2.31663809]
[1760023800124,0.498741,4317.1,4317.0,2.31642344]
[1760023800324,0.498741,4317.1,4317.0,6.593]
[1760023800520,0.498741,4317.1,4316.5,0.001]
[1760023800747,0.498741,4317.0,4316.6,6.593]
[1760023800942,0.498741,4316.9,4316.7,2.31658442]
[1760023801145,0.498741,4316.8,4316.6,6.593]
[1760023801444,0.498741,4316.7,4316.5,6.593]
[1760023801649,2.31649031,4316.9,4316.5,6.593]
[1760023801650,0.498741,4316.6,4316.5,6.593]
[1760023802146,0.498741,4316.6,4316.5,0.001]
[1760023802147,3.25927909,4316.6,4316.5,0.001]
[1760023802378,4.75494959,4316.6,4316.5,0.001]
[1760023802529,3.90214196,4316.6,4316.5,0.001]
[1760023802730,15.47910528,4316.6,4316.5,0.001]
[1760023802942,15.57669753,4316.6,4316.5,0.001]
[1760023803141,15.57589753,4316.6,4316.5,0.001]
[1760023803341,16.82306399,4316.6,4316.5,0.001]
[1760023803540,6.57389753,4316.6,4316.5,0.001]
[1760023803740,15.57489753,4316.6,4316.5,0.001]
[1760023803946,6.57389753,4316.6,4316.5,0.001]
[1760023804176,4.96831806,4316.6,4316.5,0.001]
[1760023804342,15.45594196,4316.6,4316.5,0.001]
[1760023805262,15.56965693,4316.6,4316.5,0.001]
[1760023805435,16.39832067,4316.6,4316.5,0.001]
[1760023805764,15.56965693,4316.6,4316.5,0.001]
[1760023806639,13.16165693,4316.6,4316.5,0.001]
[1760023806841,15.57065693,4316.6,4316.5,0.001]
[1760023807440,5.93505693,4316.6,4316.5,0.001]
[1760023807843,26.965676,4316.6,4316.5,0.001]
[1760023808164,27.599276,4316.6,4316.5,0.001]
[1760023809735,27.599276,4316.6,4316.0,0.001]
[1760023809736,4.87029364,4316.5,4316.0,0.001]
[1760023809961,4.87050646,4316.1,4316.0,0.001]
[1760023810163,11.46350646,4316.1,4316.0,0.001]
[1760023810378,5.31440646,4316.1,4316.0,0.001]
[1760023810575,6.14067501,4316.1,4316.0,0.001]
[1760023810781,3.64036287,4316.1,4316.0,0.001]
[1760023810980,14.98163265,4316.1,4316.0,0.001]
[1760023811181,5.32366933,4316.1,4316.0,0.001]
[1760023811380,14.32666933,4316.1,4316.0,0.001]
[1760023811753,3.00676287,4316.1,4316.0,0.001]
[1760023812098,7.0379,4316.1,4316.0,0.001]
[1760023812385,9.35480646,4316.1,4316.0,0.001]
[1760023812687,11.90840646,4316.1,4316.0,0.001]
[1760023813184,14.31740646,4316.1,4316.0,0.001]
[1760023814251,5.31440646,4316.1,4316.0,0.001]
[1760023814580,14.31640646,4316.1,4316.0,0.001]
[1760023814784,7.56617691,4316.1,4316.0,0.001]
[1760023814987,14.31740646,4316.1,4316.0,0.001]
[1760023815158,14.81269353,4316.1,4316.0,0.001]
[1760023815497,12.40269353,4316.1,4316.0,0.001]
[1760023815663,14.81169353,4316.1,4316.0,0.001]
[1760023817049,4.8707212,4315.7,4315.1,0.005]
[1760023817257,27.30640431,4315.7,4315.1,0.005]
[1760023817581,18.74830431,4315.7,4315.1,0.005]
[1760023817786,27.74930431,4315.7,4315.1,0.005]
[1760023818393,4.8707749,4315.6,4315.1,0.005]
[1760023818598,2.31738969,4315.2,4315.1,0.005]
[1760023818815,14.46217583,4315.2,4315.1,0.005]
[1760023819030,14.46217583,4315.2,4314.1,0.005]
[1760023819031,15.51831251,4315.2,4314.1,0.005]
[1760023819232,15.51831251,4315.2,4312.2,0.003]
[1760023819233,2.95206424,4313.2,4312.2,0.003]
[1760023819420,23.60558239,4313.2,4312.2,0.003]
[1760023819619,26.34758331,4313.2,4312.2,0.003]
[1760023819821,27.61567721,4313.2,4312.2,0.003]
[1760023820129,2.95217175,4313.0,4312.2,0.003]
[1760023820330,1.92,4312.5,4312.4,0.69111259]
[1760023820644,0.02136332,4312.5,4312.4,0.69111259]
[1760023820937,0.46526332,4312.5,4312.4,0.69111259]
[1760023821102,7.05926332,4312.5,4312.4,0.69111259]
[1760023821301,8.9579,4312.5,4312.4,0.69111259]
[1760023821651,1.7119939,4313.2,4312.4,0.69111259]
[1760023821830,1.94136332,4313.1,4312.4,0.69111259]
[1760023822032,6.595,4313.0,4312.4,0.69111259]
[1760023822247,0.46526332,4312.9,4312.4,0.69111259]
[1760023822414,0.4439,4312.8,4312.4,0.69111259]
[1760023822618,7.06026332,4312.7,4312.4,0.69111259]
[1760023822931,12.02761907,4313.0,4312.4,0.69111259]
[1760023822932,0.1152,4312.5,4312.4,0.69111259]
[1760023823132,0.58046332,4312.5,4312.4,0.69111259]
[1760023823333,7.17546332,4312.5,4312.4,0.69111259]
[1760023823641,0.1152,4312.5,4312.4,0.69111259]
[1760023823819,6.7102,4312.5,4312.4,0.69111259]
[1760023824226,7.1541,4312.5,4312.4,0.69111259]
[1760023824421,7.75431,4312.5,4312.4,0.69111259]
[1760023824834,1.15931,4312.5,4312.4,0.69111259]
[1760023825054,6.595,4312.5,4312.4,0.69111259]
[1760023825378,7.0389,4312.5,4312.4,0.69111259]
[1760023825550,0.4439,4312.5,4312.4,0.69111259]
[1760023825754,7.0389,4312.5,4312.4,0.69111259]
[1760023826267,0.4431,4312.5,4312.4,0.69111259]
[1760023826463,6.595,4312.5,4312.4,0.69111259]
[1760023827552,9.57334057,4312.5,4312.4,0.69111259]
[1760023827762,10.06824649,4312.5,4312.4,0.69111259]
[1760023828341,10.60880592,4312.5,4312.4,0.69111259]
[1760023828516,1.60280592,4312.5,4312.4,0.69111259]
[1760023828716,4.27530592,4312.5,4312.4,0.69111259]
[1760023829738,0.94330592,4312.5,4312.4,0.69111259]
[1760023830036,7.09090592,4312.5,4312.4,0.69111259]
[1760023830578,7.53930592,4312.5,4312.4,0.69111259]
[1760023830874,0.49490592,4312.5,4312.4,0.69111259]
[1760023831082,0.4484,4313.1,4312.4,0.69111259]
[1760023831083,0.02136332,4312.9,4312.4,0.69111259]
[1760023831266,1.24506284,4313.7,4312.4,0.69111259]
[1760023831267,0.02136332,4313.3,4312.4,0.98711259]
[1760023831574,0.49549347,4313.2,4313.1,2.318518]
[1760023831933,0.4484,4313.6,4313.3,2.31840065]
[1760023831934,1.976,4313.6,4313.3,2.31840065]
[1760023832146,0.49570608,4313.5,4313.2,2.31846424]
[1760023832357,0.49570608,4313.5,4312.5,2.61479578]
[1760023832358,0.5170694,4313.4,4313.3,2.31841049]
[1760023832544,0.49570608,4313.4,4313.1,2.3184778]
[1760023832911,3.931,4313.7,4313.5,2.318303]
[1760023832912,0.02136332,4313.7,4313.5,2.318303]
[1760023833162,0.49594116,4313.6,4313.5,2.318303]
[1760023833342,0.49594116,4313.6,4313.4,2.31830315]
[1760023833544,0.49594116,4313.5,4312.6,2.31874201]
[1760023833741,0.02136332,4313.9,4312.4,3.39811259]
[1760023833742,0.02136332,4313.9,4313.5,2.3182835]
[1760023833945,0.02136332,4313.9,4312.7,0.57168546]
[1760023833946,0.4960971,4313.8,4313.7,2.31819551]
[1760023834266,0.4960971,4313.8,4312.9,0.296]
[1760023834481,0.4960971,4313.7,4313.6,2.43344925]
[1760023834630,0.02136332,4314.0,4313.7,2.31818997]
[1760023834970,0.4961986,4313.9,4313.6,0.1152]
[1760023835178,12.66121907,4313.7,4312.4,0.69111259]
[1760023835470,0.82625302,4313.0,4312.4,0.69111259]
[1760023835629,0.51778698,4312.9,4312.4,0.69111259]
[1760023835829,0.49642366,4312.8,4312.7,2.31873304]
[1760023836045,1.6576872,4314.3,4313.1,2.31847617]
[1760023836046,0.02136332,4313.6,4313.1,2.31847617]
[1760023836249,0.49634469,4313.5,4313.2,2.31846326]
[1760023836538,5.27736332,4314.1,4312.7,0.296]
[1760023836872,0.9448304,4314.0,4312.7,0.33059643]
[1760023837030,0.002,4313.7,4312.4,0.69111259]
[1760023837227,0.4964304,4313.6,4312.9,2.31861869]
[1760023837455,0.96619372,4313.5,4312.6,2.31874567]
[1760023837764,0.4964304,4313.4,4312.7,2.31871824]
[1760023837964,0.51779372,4313.3,4312.7,2.31871824]
[1760023838169,0.51779372,4313.3,4312.4,0.69111259]
[1760023838170,0.4964304,4313.2,4312.4,0.69111259]
[1760023838368,2.18032611,4313.1,4312.4,0.69111259]
[1760023838671,1.77108342,4313.0,4312.4,0.69111259]
[1760023838837,1.34404674,4312.9,4312.4,0.69111259]
[1760023839037,0.4964304,4312.8,4312.4,0.69111259]
[1760023839232,8.40344674,4312.7,4312.4,0.69111259]
[1760023839445,4.3358782,4312.6,4312.4,0.69111259]
[1760023839746,0.51779372,4312.5,4312.4,0.69111259]
[1760023839942,3.28503429,4312.5,4312.4,0.69111259]
[1760023840142,0.96619372,4312.5,4312.4,0.69111259]
[1760023840753,1.59979372,4312.5,4312.4,0.69111259]
[1760023840954,1.49580566,4312.5,4312.4,0.69111259]
[1760023841159,2.3242252,4312.5,4312.4,0.69111259]
[1760023841358,1.34621326,4312.5,4312.4,0.69111259]
[1760023841560,0.51779372,4312.5,4312.4,0.69111259]
[1760023842270,1.34621326,4312.5,4312.4,0.69111259]
[1760023842439,0.51779372,4312.5,4312.4,0.69111259]
[1760023843569,1.34621326,4312.5,4312.4,0.69111259]
[1760023843735,0.51779372,4312.5,4312.4,0.69111259]
[1760023843939,0.4964304,4312.5,4312.4,0.69111259]
[1760023844134,1.77324994,4312.5,4312.4,0.69111259]
[1760023844356,1.32621636,4312.5,4312.4,0.69111259]
[1760023844556,0.4964304,4312.5,4312.4,0.69111259]
[1760023845406,0.9349304,4312.5,4312.4,0.69111259]
[1760023845963,1.12505359,4312.5,4312.4,0.69111259]
[1760023846359,1.95479173,4312.5,4312.4,0.69111259]
[1760023846893,1.97615505,4312.5,4312.4,0.69111259]
[1760023847188,1.78603186,4312.5,4312.4,0.69111259]
[1760023847492,0.95629372,4312.5,4312.4,0.69111259]
[1760023847859,1.32756641,4312.5,4312.4,0.69111259]
[1760023848088,1.76606641,4312.5,4312.4,0.69111259]
[1760023848263,0.9349304,4312.5,4312.4,0.69111259]
[1760023848477,0.4964304,4312.5,4312.4,0.69111259]
[1760023848810,1.32801477,4312.5,4312.4,0.69111259]
[1760023849183,1.32721477,4312.5,4312.4,0.69111259]
[1760023849573,0.4956304,4312.5,4312.4,3.42120694]
[1760023849771,0.4956304,4312.5,4312.4,3.77604763]
[1760023850081,0.85294769,4313.4,4312.4,1.16115328]
[1760023850398,0.02136332,4313.4,4313.1,0.1152]
[1760023850602,0.83158437,4313.5,4313.4,2.31835674]
[1760023850896,0.002,4313.7,4313.5,2.318303]
[1760023851104,0.002,4313.7,4313.6,2.43344925]
[1760023851468,0.002,4313.7,4313.6,2.75263174]
[1760023851900,0.002,4313.7,4313.6,4.64944925]
[1760023852513,0.002,4314.2,4314.1,2.31798057]
[1760023852514,1e-08,4314.2,4314.1,2.31798057]
[1760023852668,1e-08,4314.2,4314.1,14.09096432]
[1760023852868,1e-08,4314.2,4314.1,14.47898452]
[1760023854019,1e-08,4314.2,4314.1,15.11258452]
[1760023854372,0.005,4314.9,4314.1,15.11258452]
[1760023854373,1e-08,4314.9,4314.8,2.31760452]
[1760023854609,1e-08,4314.9,4314.8,11.50238056]
[1760023854810,1e-08,4314.9,4314.8,14.02697497]
[1760023856807,1e-08,4315.9,4315.8,2.31706751]
[1760023856971,1e-08,4315.9,4315.8,13.27623818]
[1760023857173,1e-08,4315.9,4315.8,15.30040593]
[1760023860792,1e-08,4315.9,4315.8,6.28440593]
[1760023860992,1e-08,4315.9,4315.8,23.18506751]
[1760023861181,1e-08,4315.9,4315.8,2.61306751]
[1760023861376,1e-08,4315.9,4315.8,11.41306751]
[1760023861773,1e-08,4315.9,4315.1,1.92]
[1760023861774,1e-08,4315.9,4313.5,2.79295243]
[1760023861974,1e-08,4315.9,4315.8,2.31706751]
[1760023862185,1e-08,4315.9,4315.8,1.878]
[1760023862583,1e-08,4315.9,4315.8,4.49106751]
[1760023863117,1e-08,4315.9,4315.8,16.05006751]
[1760023863296,1e-08,4315.9,4315.8,17.88679173]
[1760023863705,1e-08,4315.9,4315.8,8.77879173]
[1760023863906,1e-08,4315.9,4315.2,0.296]
[1760023864090,1e-08,4315.9,4315.6,2.31712618]
[1760023864278,1e-08,4315.9,4315.8,0.1152]
[1760023864472,1e-08,4315.9,4315.8,2.43226751]
[1760023864672,1e-08,4315.9,4315.8,0.1152]
[1760023866494,1e-08,4315.9,4315.8,3.88668882]
[1760023866891,1e-08,4315.9,4315.8,5.78351815]
[1760023867217,1e-08,4315.9,4315.0,0.09271266]
[1760023867518,1e-08,4315.9,4314.9,0.145]
[1760023867818,1e-08,4315.9,4315.3,2.31731142]
[1760023868308,1e-08,4315.9,4315.1,2.31743519]
[1760023868515,1e-08,4315.9,4315.0,2.31749493]
[1760023868711,1e-08,4315.9,4315.3,2.31731664]
[1760023869085,1e-08,4315.9,4314.9,0.145]
[1760023869287,1e-08,4315.9,4315.4,2.31723906]
[1760023869717,1e-08,4315.9,4315.2,2.31738849]
[1760023869718,1e-08,4315.9,4315.5,2.31722685]
[1760023869921,1e-08,4315.9,4315.4,7.10126899]
[1760023870118,1e-08,4315.9,4315.6,2.31716298]
[1760023870409,1e-08,4315.9,4315.5,2.31721829]
[1760023870584,1e-08,4315.9,4315.4,4.784]
[1760023870780,1e-08,4315.9,4315.4,7.10127651]
[1760023871110,1e-08,4315.9,4315.5,2.31718291]
[1760023871411,1e-08,4315.9,4315.5,6.621]
[1760023872202,0.02056333,4316.3,4315.5,6.621]
[1760023873114,0.28012649,4316.2,4313.5,2.3182501]
[1760023873309,0.02056333,4316.1,4314.3,0.296]
[1760023873515,0.02056333,4316.1,4314.9,2.31752775]
[1760023873714,0.02056333,4316.3,4315.0,0.60125963]
[1760023873922,0.002,4316.6,4315.0,0.60125963]
[1760023873923,0.02256333,4316.6,4315.1,2.365]
[1760023874132,0.02256333,4316.6,4315.2,0.02317389]
[1760023874133,0.002,4316.6,4315.2,0.02317389]
[1760023874430,0.002,4316.6,4316.3,2.31679899]
[1760023874640,0.002,4316.6,4316.2,2.31685278]
[1760023874846,0.002,4316.6,4316.1,4.618]
[1760023874847,0.002,4316.6,4316.5,2.31669176]
[1760023875207,0.002,4316.6,4316.5,2.61269176]
[1760023875419,0.002,4316.6,4316.5,3.1079543]
[1760023876430,0.002,4316.6,4316.5,0.49526254]
[1760023876630,0.002,4316.6,4316.5,2.31669176]
[1760023876948,0.002,4316.6,4316.5,2.61269176]
[1760023877245,0.002,4316.6,4316.5,2.43189176]
[1760023877746,0.002,4316.6,4316.5,2.72789176]
[1760023878503,0.002,4316.6,4316.5,0.1152]
[1760023878744,0.002,4316.6,4316.5,0.5402]
[1760023879507,0.8521477,4317.4,4316.5,1.04885713]
[1760023879706,0.002,4317.5,4317.4,2.31620882]
[1760023879908,0.002,4317.5,4317.4,9.04920882]
[1760023880233,0.002,4317.5,4316.6,2.409]
[1760023880536,0.466,4317.5,4316.9,6.615]
[1760023880735,0.02056333,4317.4,4316.9,6.615]
[1760023880939,0.002,4317.5,4317.3,2.31621714]
[1760023881138,0.002,4317.5,4316.6,2.409]
[1760023881139,0.002,4317.5,4313.2,2.31843231]
[1760023881140,0.2154,4317.0,4313.2,2.31843231]
[1760023881357,0.83008139,4315.3,4314.1,0.005]
[1760023881504,3.5776872,4316.2,4314.1,0.005]
[1760023881505,0.83008139,4314.6,4314.1,0.005]
[1760023881704,0.02056333,4314.5,4314.1,0.005]
[1760023881907,0.01556333,4314.5,4314.1,0.005]
[1760023882145,2.31787355,4314.3,4314.1,0.005]
[1760023882337,0.01556333,4314.2,4314.1,0.005]
[1760023882538,0.01556333,4314.2,4312.2,0.003]
[1760023882539,2.31818673,4313.8,4312.2,0.003]
[1760023882842,16.66501859,4313.7,4312.2,0.003]
[1760023883013,14.79525975,4313.7,4312.2,0.003]
[1760023883213,17.11345526,4313.7,4312.2,2.32199852]
[1760023883413,17.94178135,4313.7,4312.2,0.003]
[1760023883957,24.55778135,4313.7,4312.2,0.003]
[1760023884247,24.36305526,4313.7,4312.2,0.003]
[1760023884638,25.19030828,4313.7,4312.2,0.003]
[1760023885142,25.40485975,4313.7,4312.2,0.003]
[1760023885322,2.31846424,4313.2,4312.2,0.003]
[1760023885523,3.57308281,4313.2,4312.2,0.003]
[1760023885760,4.03708281,4313.2,4312.2,0.003]
[1760023886260,2.79802757,4313.2,4312.2,0.003]
[1760023886466,11.82302757,4313.2,4312.2,0.003]
[1760023886763,12.20988174,4313.2,4312.2,0.003]